[Event "40th BAN National Women Chess-ch 2021"]
[Site "Dhaka"]
[Date "2022.01.05"]
[Round "8.5"]
[White "Hamid, Rani"]
[Black "Thakur Jania, Haque"]
[Result "1/2-1/2"]
[ECO "A23"]
[WhiteElo "1864"]
[BlackElo "1472"]
[Annotator "NA RC"]
[PlyCount "88"]
[EventDate "2021.12.29"]
[EventCountry "BAN"]
[SourceTitle "playchess.com"]
[Source "ChessBase"]
[SourceQuality "1"]
[TimeControl "40/5400+30:1800+30"]

1. c4 {[%emt 0:00:05]} e5 {[%emt 0:00:46]} 2. Nc3 {[%emt 0:00:29]} Nf6 {[%emt 0:00:48]} 3. g3 {[%emt 0:00:27]} c6 {[%emt 0:00:26]} 4. Bg2 {[%emt 0:00:21]} Bc5 {[%emt 0:00:36]} 5. d3 {[%emt 0:01:29]} d5 {[%emt 0:00:30]} 6. cxd5 {[%emt 0:00:59]} cxd5 {[%emt 0:00:10]} 7. Nf3 {[%emt 0:02:22]} Nc6 {[%emt 0:00:56]} 8. O-O {[%emt 0:01:07]} Be6 {[%emt 0:00:28]} 9. Ng5 {[%emt 0:02:36]} O-O {[%emt 0:02:47]} 10. Nxe6 {[%emt 0:02:06]} fxe6 {[%emt 0:00:24]} 11. Bh3 {[%emt 0:00:27]} Qe7 {[%emt 0:00:54]} 12. Bd2 {[%emt 0:02:49]} Rad8 {[%emt 0:02:16]} 13. Rc1 {[%emt 0:01:22]} e4 {[%emt 0:00:43]} 14. Na4 {[%emt 0:01:47]} Bd6 {[%emt 0:01:04]} 15. Bg5 {[%emt 0:01:04]} h6 {[%emt 0:00:30]} 16. Bxf6 {[%emt 0:00:27]} Qxf6 {[%emt 0:00:35]} 17. dxe4 {[%emt 0:02:25]} dxe4 {[%emt 0:03:26]} 18. Qc2 {[%emt 0:00:21]} Qe5 {[%emt 0:02:17]} 19. Qc4 {[%emt 0:02:46]} Nd4 {[%emt 0:03:53]} 20. Nc3 {[%emt 0:00:29] [#]} Rc8 $1 {[%emt 0:03:41]} 21. Qa4 {[%emt 0:00:48] [#]} Rxc3 $1 {[%emt 0:04:20]} 22. Rxc3 {[%emt 0:00:11]} Nxe2+ {[%emt 0:00:10]} 23. Kh1 {[%emt 0:00:03]} Nxc3 {[%emt 0:01:01]} 24. bxc3 {[%emt 0:00:02]} Bc5 {[%emt 0:02:13]} 25. Qc4 {[%emt 0:02:50]} Rf6 {[%emt 0:04:34]} 26. Bg2 {[%emt 0:01:14]} e3 {[%emt 0:03:17]} 27. f4 {[%emt 0:01:11]} Qc7 {[%emt 0:08:15]} 28. f5 {[%emt 0:03:48]} Kh8 {[%emt 0:00:53]} 29. fxe6 {[%emt 0:00:46]} Rxf1+ {[%emt 0:00:26]} 30. Qxf1 {[%emt 0:00:38]} Qe7 {[%emt 0:01:46]} 31. Bd5 {[%emt 0:02:09]} b6 {[%emt 0:00:31]} 32. Qb5 {[%emt 0:03:28]} Qf8 {[%emt 0:01:12]} 33. Qe2 $1 {[%emt 0:06:45]} Qf2 {[%emt 0:01:14]} 34. Bf3 {[%emt 0:03:00]} Qxe2 {[%emt 0:00:32]} 35. Bxe2 {[%emt 0:00:02]} Kg8 {[%emt 0:00:27]} 36. Kg2 {[%emt 0:00:30]} Kf8 {[%emt 0:00:01]} 37. Kf3 {[%emt 0:00:37]} Ke7 {[%emt 0:00:06]} 38. Bc4 {[%emt 0:00:06]} Kf6 {[%emt 0:00:22]} 39. h4 {[%emt 0:00:57]} g5 {[%emt 0:01:04]} 40. hxg5+ {[%emt 0:00:00]} hxg5 {[%emt 0:00:00]} 41. Kg4 {[%emt 0:05:02]} Bd6 {[%emt 0:01:37]} 42. Kf3 $11 {[%emt 1:21:25]} Bc5 {[%emt 1:20:19]} 43. a4 {[%emt 0:00:00]} a5 {[%emt 0:00:00]} 44. g4 {[%emt 0:00:00]} Ke5 {[%emt 0:01:00]} 1/2-1/2

[Event "40th BAN National Women Chess-ch 2021"]
[Site "Dhaka"]
[Date "2022.01.05"]
[Round "8.6"]
[White "Khan, Nazrana"]
[Black "Jannatul, Ferdousi"]
[Result "1-0"]
[ECO "D47"]
[WhiteElo "1848"]
[BlackElo "1532"]
[Annotator "NA RC"]
[PlyCount "77"]
[EventDate "2021.12.29"]
[EventCountry "BAN"]
[SourceTitle "playchess.com"]
[Source "ChessBase"]
[SourceQuality "1"]
[TimeControl "40/5400+30:1800+30"]

1. d4 {[%emt 0:00:04]} d5 {[%emt 0:00:02]} 2. c4 {[%emt 0:00:08]} c6 {[%emt 0:00:04]} 3. Nf3 {[%emt 0:00:14]} e6 {[%emt 0:00:29]} 4. Nc3 {[%emt 0:00:39]} Nf6 {[%emt 0:00:17]} 5. e3 {[%emt 0:00:59]} Nbd7 {[%emt 0:00:11]} 6. Bd3 {[%emt 0:00:32]} dxc4 {[%emt 0:00:22]} 7. Bxc4 {[%emt 0:00:09]} b5 {[%emt 0:00:06]} 8. Bd3 {[%emt 0:00:07]} Bb7 {[%emt 0:00:33]} 9. O-O {[%emt 0:00:21]} Bd6 {[%emt 0:00:26]} 10. e4 {[%emt 0:00:59]} e5 {[%emt 0:00:28]} 11. h3 {[%emt 0:07:00]} O-O {[%emt 0:03:16]} 12. Be3 {[%emt 0:08:15]} a6 {[%emt 0:05:14]} 13. dxe5 {[%emt 0:03:13]} Nxe5 {[%emt 0:00:38]} 14. Nxe5 {[%emt 0:01:31]} Bxe5 {[%emt 0:00:03]} 15. Qe2 {[%emt 0:01:03]} Rc8 {[%emt 0:04:50]} 16. Rad1 {[%emt 0:01:06]} Qe7 {[%emt 0:01:56]} 17. Bg5 {[%emt 0:16:21]} Qe6 {[%emt 0:22:48]} 18. f4 {[%emt 0:03:19]} Bd4+ {[%emt 0:08:50]} 19. Kh2 {[%emt 0:00:40]} c5 {[%emt 0:02:56]} 20. e5 {[%emt 0:03:30]} Nd7 {[%emt 0:07:11]} 21. Ne4 {[%emt 0:10:31]} Bxe4 $16 {[%emt 0:09:35]} (21... f6 $11) 22. Qxe4 {[%emt 0:04:23]} g6 {[%emt 0:03:04]} 23. b3 {[%emt 0:00:35]} Rfe8 {[%emt 0:03:48]} 24. Qf3 {[%emt 0:03:00]} f6 {[%emt 0:06:27]} 25. exf6 {[%emt 0:00:53]} Nxf6 {[%emt 0:08:51]} 26. f5 {[%emt 0:05:10]} gxf5 {[%emt 0:04:41]} 27. Bxf5 {[%emt 0:01:13]} Qe5+ {[%emt 0:00:20]} 28. Kh1 {[%emt 0:02:22]} Ra8 {[%emt 0:02:03]} 29. Bxf6 {[%emt 0:03:37]} Qxf6 {[%emt 0:00:52]} 30. Bxh7+ {[%emt 0:04:10]} Kxh7 {[%emt 0:00:00]} 31. Qxf6 {[%emt 0:00:20]} Bxf6 {[%emt 0:00:22]} 32. Rxf6 {[%emt 0:00:13]} Re2 {[%emt 0:01:27]} 33. a4 {[%emt 0:01:29]} bxa4 {[%emt 0:04:16]} 34. bxa4 {[%emt 0:00:26]} a5 {[%emt 0:00:30]} 35. Rd7+ {[%emt 0:01:22]} Kg8 {[%emt 0:00:24]} 36. Rd5 {[%emt 0:02:38]} Ra2 {[%emt 0:00:36]} 37. Rg5+ {[%emt 0:00:58]} Kh7 {[%emt 0:00:16]} 38. Rf4 {[%emt 0:01:16]} Rc8 {[%emt 0:00:41]} 39. Rh4# {[%emt 0:00:43]} 1-0

[Event "40th BAN National Women Chess-ch 2021"]
[Site "Dhaka"]
[Date "2022.01.06"]
[Round "9.1"]
[White "Jannatul, Ferdous"]
[Black "Ahmed, Walijah"]
[Result "1-0"]
[ECO "B44"]
[WhiteElo "1810"]
[BlackElo "1919"]
[Annotator "ChessBase"]
[PlyCount "127"]
[EventDate "2021.12.29"]
[EventCountry "BAN"]
[SourceTitle "playchess.com"]
[Source "ChessBase"]
[SourceQuality "1"]
[TimeControl "40/5400+30:1800+30"]

1. e4 {[%emt 0:01:36]} c5 {[%emt 0:00:17]} 2. Nf3 {[%emt 0:00:35]} e6 {[%emt 0:00:09]} 3. d4 {[%emt 0:00:06]} cxd4 {[%emt 0:00:09]} 4. Nxd4 {[%emt 1:30:13]} Nc6 {[%emt 0:00:08]} 5. c4 {[%emt 0:00:24]} Nf6 {[%emt 0:00:21]} 6. Nc3 {[%emt 0:00:12]} Bb4 {[%emt 0:00:06]} 7. Nxc6 {[%emt 0:00:36]} bxc6 {[%emt 0:00:11]} 8. Bd3 {[%emt 1:30:57]} e5 {[%emt 0:00:21]} 9. O-O {[%emt 0:01:11]} Bc5 {[%emt 0:00:28]} 10. Qe2 {[%emt 0:01:25]} d6 {[%emt 0:00:46]} 11. h3 {[%emt 0:00:29]} Rb8 {[%emt 0:07:01]} 12. a3 {[%emt 1:29:30]} a5 {[%emt 0:01:25]} 13. Rb1 {[%emt 0:01:31]} O-O {[%emt 1:25:38]} 14. Be3 {[%emt 0:03:14]} Bxe3 {[%emt 0:12:18]} 15. Qxe3 {[%emt 0:00:41]} Nh5 {[%emt 0:04:33]} 16. c5 {[%emt 0:14:23]} Nf4 {[%emt 0:06:42]} 17. Rfd1 {[%emt 0:11:13]} dxc5 {[%emt 0:09:36]} 18. Bf1 {[%emt 0:00:00]} Qg5 {[%emt 0:03:44]} 19. Kh2 {[%emt 0:00:00]} Ba6 {[%emt 0:11:24]} 20. g3 {[%emt 0:00:00]} Bxf1 {[%emt 0:00:00]} 21. Rxf1 {[%emt 0:00:00]} Ne6 {[%emt 0:00:00]} 22. f4 {[%emt 0:00:00]} Qh6 {[%emt 0:00:00]} 23. Qf2 {[%emt 0:00:00]} exf4 {[%emt 0:00:00]} 24. gxf4 {[%emt 0:00:00]} Rfd8 {[%emt 0:00:00]} 25. Rbd1 {[%emt 0:00:00]} c4 {[%emt 0:00:00]} 26. f5 {[%emt 0:04:30]} Rxd1 {[%emt 0:00:00]} 27. Nxd1 {[%emt 0:00:47]} Ng5 {[%emt 0:00:00]} 28. h4 {[%emt 0:01:48]} Nxe4 {[%emt 0:00:00]} 29. Qf4 {[%emt 0:00:38]} Qxf4+ {[%emt 0:00:00]} 30. Rxf4 {[%emt 0:00:02]} Nd6 {[%emt 0:00:00]} 31. f6 {[%emt 0:01:28]} gxf6 {[%emt 0:00:00]} 32. Rxf6 {[%emt 0:00:29]} Rd8 {[%emt 0:00:00]} 33. Ne3 {[%emt 0:00:42]} Kg7 {[%emt 0:00:17]} 34. Rxd6 {[%emt 0:00:49]} Re8 {[%emt 0:02:10]} 35. Nxc4 {[%emt 0:00:15]} Re4 {[%emt 0:01:40]} 36. Nxa5 {[%emt 0:00:38]} Re2+ {[%emt 0:00:33]} 37. Kg3 {[%emt 0:00:25]} c5 {[%emt 0:01:26]} 38. Rb6 {[%emt 0:00:21]} f6 {[%emt 0:00:28]} 39. Nb7 {[%emt 0:01:02]} c4 {[%emt 0:00:20]} 40. a4 {[%emt 0:00:00]} f5 {[%emt 0:00:00]} 41. a5 {[%emt 0:01:52]} Re3+ {[%emt 0:02:07]} 42. Kf4 {[%emt 0:03:44]} Re4+ {[%emt 0:00:02]} 43. Kxf5 {[%emt 0:01:52]} Rxh4 {[%emt 0:00:04]} 44. a6 {[%emt 0:00:47]} Rh1 {[%emt 0:00:27]} 45. Na5 {[%emt 0:01:03]} Rh5+ {[%emt 0:00:10]} 46. Ke4 {[%emt 0:02:12]} Rxa5 {[%emt 0:00:04]} 47. Kd4 {[%emt 0:00:35]} Ra4 {[%emt 0:00:37]} 48. Kc5 {[%emt 0:01:08]} h5 {[%emt 0:00:14]} 49. Rb7+ {[%emt 0:20:53]} Kg6 {[%emt 0:00:15]} 50. a7 {[%emt 0:01:10]} h4 {[%emt 0:00:25]} 51. Kb5 {[%emt 0:00:45]} Ra2 {[%emt 0:02:29]} 52. Rb6+ {[%emt 0:00:31]} Kg5 {[%emt 0:00:08]} 53. Ra6 {[%emt 0:00:12]} Rxb2+ {[%emt 0:00:04]} 54. Kc5 {[%emt 0:00:56]} c3 {[%emt 0:00:22]} 55. a8=Q {[%emt 0:00:03]} c2 {[%emt 0:00:13]} 56. Qg2+ {[%emt 0:00:29]} Kf4 {[%emt 0:00:31]} 57. Rf6+ {[%emt 0:00:33]} Ke5 {[%emt 0:00:26]} 58. Qg5+ {[%emt 0:00:04]} Ke4 {[%emt 0:00:11]} 59. Qxh4+ {[%emt 0:00:17]} Ke5 {[%emt 0:00:18]} 60. Qg5+ {[%emt 0:00:03]} Ke4 {[%emt 0:00:10]} 61. Rf4+ {[%emt 0:00:02]} Kd3 {[%emt 0:34:49]} 62. Qg3+ {[%emt 0:00:05]} Kd2 {[%emt 0:00:07]} 63. Rf2+ {[%emt 0:00:09]} Ke1 {[%emt 0:00:06]} 64. Qg1# {[%emt 0:00:02]} 1-0

[Event "40th BAN National Women Chess-ch 2021"]
[Site "Dhaka"]
[Date "2022.01.06"]
[Round "9.2"]
[White "Talukder, Umme Taslima Protiva"]
[Black "Israt, Jahan Diba"]
[Result "1/2-1/2"]
[ECO "D37"]
[WhiteElo "1706"]
[BlackElo "1630"]
[Annotator "NA"]
[PlyCount "150"]
[EventDate "2021.12.29"]
[EventCountry "BAN"]
[SourceTitle "playchess.com"]
[Source "ChessBase"]
[SourceQuality "1"]
[TimeControl "40/5400+30:1800+30"]

1. d4 {[%emt 0:00:10]} d5 {[%emt 0:00:06]} 2. c4 {[%emt 0:00:10]} e6 {[%emt 0:00:05]} 3. Nc3 {[%emt 0:00:14]} Nf6 {[%emt 0:00:07]} 4. e3 {[%emt 0:00:17]} Be7 {[%emt 0:00:19]} 5. Nf3 {[%emt 0:00:10]} Nbd7 {[%emt 0:00:14]} 6. cxd5 {[%emt 0:00:32]} exd5 {[%emt 0:00:30]} 7. Bd3 {[%emt 0:00:33]} O-O {[%emt 0:00:26]} 8. O-O {[%emt 1:32:24]} b6 {[%emt 1:32:43]} 9. Ne5 {[%emt 0:00:30]} Bb7 {[%emt 0:00:30]} 10. f4 {[%emt 0:00:00]} c5 {[%emt 0:00:00]} 11. Qc2 {[%emt 0:00:00]} cxd4 {[%emt 0:00:00]} 12. exd4 {[%emt 0:00:00]} Rc8 {[%emt 0:00:00]} 13. Qe2 {[%emt 0:00:00]} Bb4 {[%emt 0:00:00]} 14. Bd2 {[%emt 0:00:00]} Bxc3 {[%emt 0:00:00]} 15. Bxc3 {[%emt 0:00:00]} Ne4 {[%emt 0:00:00]} 16. Bb4 {[%emt 0:00:00]} Re8 {[%emt 0:00:00]} 17. Bb5 {[%emt 0:00:00]} Nef6 {[%emt 0:00:00]} 18. Rac1 {[%emt 0:04:30]} Ra8 {[%emt 0:00:00]} 19. Qf3 {[%emt 0:00:30]} Re6 {[%emt 0:00:00]} 20. Rc2 {[%emt 0:00:00]} a6 {[%emt 0:00:00]} 21. Bd3 {[%emt 0:00:00]} Ne4 {[%emt 0:06:00]} 22. Rfc1 {[%emt 0:01:30]} Rc8 {[%emt 0:00:30]} 23. Rxc8 {[%emt 0:00:00]} Bxc8 {[%emt 0:00:00]} 24. Bxe4 {[%emt 0:00:00]} dxe4 {[%emt 0:00:00]} 25. Qxe4 {[%emt 0:00:00]} Nf6 {[%emt 0:00:00]} 26. Qd3 {[%emt 0:00:00]} Bb7 {[%emt 0:00:00]} 27. Qc4 {[%emt 0:00:00]} Nd5 {[%emt 0:00:00]} 28. Bd2 {[%emt 0:00:00]} h6 {[%emt 0:00:00]} 29. Qd3 {[%emt 0:00:00]} Nf6 {[%emt 0:00:00]} 30. Re1 {[%emt 0:00:00]} Qd5 {[%emt 0:00:00]} 31. Re2 {[%emt 0:00:00]} Qxa2 {[%emt 0:01:43]} 32. Bc3 {[%emt 0:00:00]} Qd5 {[%emt 0:00:45]} 33. f5 {[%emt 0:00:00]} Rxe5 {[%emt 0:00:15]} 34. Rf2 {[%emt 0:00:00]} Re8 {[%emt 0:01:04]} 35. Qh3 {[%emt 0:00:00]} Qe4 {[%emt 0:00:47]} 36. Qg3 {[%emt 0:00:00]} Bd5 {[%emt 0:00:26]} 37. h3 {[%emt 0:00:00]} Nh5 {[%emt 0:00:40]} 38. Qc7 {[%emt 0:00:00]} Ng3 {[%emt 0:00:43]} 39. Qxg3 {[%emt 0:00:00]} Qe3 {[%emt 0:01:00]} 40. Qd6 {[%emt 0:00:00]} Bc4 {[%emt 0:00:00]} 41. Qxb6 {[%emt 0:00:00]} Re4 {[%emt 0:03:06]} 42. Qc7 {[%emt 0:00:00]} Bb5 {[%emt 0:03:49]} 43. f6 {[%emt 0:01:40]} g5 {[%emt 0:02:50]} 44. Qc8+ {[%emt 0:06:41]} Be8 {[%emt 0:02:10]} 45. Qxa6 {[%emt 0:02:41]} Re6 {[%emt 0:00:58]} 46. Qf1 {[%emt 0:08:03]} Rxf6 {[%emt 0:02:50]} 47. Qe1 {[%emt 0:01:58]} Qxe1+ {[%emt 0:02:59]} 48. Bxe1 {[%emt 0:00:05]} Rxf2 {[%emt 0:01:11]} 49. Kxf2 {[%emt 0:00:02]} Bc6 {[%emt 0:01:04]} 50. g3 {[%emt 0:01:06]} Kf8 {[%emt 0:02:09]} 51. Ke3 {[%emt 0:00:26]} Ke7 {[%emt 0:01:03]} 52. Bb4+ {[%emt 0:01:00]} Ke6 {[%emt 0:01:05]} 53. Bf8 {[%emt 0:00:34]} h5 {[%emt 0:00:29]} 54. Bh6 {[%emt 0:00:59]} Bg2 {[%emt 0:01:22]} 55. Bxg5 {[%emt 0:00:48]} Bxh3 {[%emt 0:00:05]} 56. b4 {[%emt 0:02:36]} Bf1 {[%emt 0:01:06]} 57. Bd8 {[%emt 0:01:45]} Kd5 {[%emt 0:00:14]} 58. Bb6 {[%emt 0:00:30]} Bb5 {[%emt 0:00:57]} 59. Kf4 {[%emt 0:00:19]} Be2 {[%emt 0:01:07]} 60. Bc5 {[%emt 0:00:56]} Kc6 {[%emt 0:00:59]} 61. Ke5 {[%emt 0:01:44]} Bc4 {[%emt 0:03:54]} 62. Bf8 {[%emt 0:01:59]} Kb5 {[%emt 0:06:18]} 63. d5 {[%emt 0:01:35]} Bb3 {[%emt 0:00:39]} 64. d6 {[%emt 0:00:45]} Be6 {[%emt 0:00:26]} 65. Kf6 {[%emt 0:00:34]} Kc6 {[%emt 0:00:43]} 66. Ke7 {[%emt 0:00:13]} Bg4 {[%emt 0:00:30]} 67. d7 {[%emt 0:04:05]} Bxd7 {[%emt 0:00:12]} 68. b5+ {[%emt 0:00:44]} Kxb5 {[%emt 0:00:39]} 69. Kxd7 {[%emt 0:00:02]} Kc4 {[%emt 0:00:34]} 70. Ke7 {[%emt 0:00:07]} Kd3 {[%emt 0:00:20]} 71. Kxf7 {[%emt 0:00:03]} Ke4 {[%emt 0:00:11]} 72. Kg6 {[%emt 0:00:25]} Kf3 {[%emt 0:00:09]} 73. Bd6 {[%emt 0:03:03]} Kg4 {[%emt 0:00:09]} 74. Kh6 {[%emt 0:01:07]} h4 {[%emt 0:00:09]} 75. gxh4 {[%emt 0:00:19]} Kxh4 {[%emt 0:00:02]} 1/2-1/2

[Event "40th BAN National Women Chess-ch 2021"]
[Site "Dhaka"]
[Date "2022.01.06"]
[Round "9.3"]
[White "Noshin, Anjum"]
[Black "Tasnia Tarannum, Orpa"]
[Result "1-0"]
[ECO "B13"]
[WhiteElo "2045"]
[BlackElo "1618"]
[Annotator "ChessBase"]
[PlyCount "109"]
[EventDate "2021.12.29"]
[EventCountry "BAN"]
[SourceTitle "playchess.com"]
[Source "ChessBase"]
[SourceQuality "1"]
[TimeControl "40/5400+30:1800+30"]

1. e4 {[%emt 0:01:29]} c6 {[%emt 0:00:01]} 2. Nf3 {[%emt 0:00:22]} d5 {[%emt 0:00:32]} 3. exd5 {[%emt 0:00:07]} cxd5 {[%emt 0:00:09]} 4. d4 {[%emt 1:30:32]} Nf6 {[%emt 0:01:30]} 5. c4 {[%emt 0:00:30]} Bf5 {[%emt 0:02:54]} 6. Nc3 {[%emt 0:00:30]} e6 {[%emt 0:17:41]} 7. Qb3 {[%emt 0:00:30]} Qb6 {[%emt 0:13:35]} 8. cxd5 {[%emt 0:00:00]} Qxb3 {[%emt 0:03:16]} 9. axb3 {[%emt 0:00:00]} Bb4 {[%emt 0:02:31]} 10. Bb5+ {[%emt 0:00:00]} Nbd7 {[%emt 0:05:56]} 11. dxe6 {[%emt 0:02:00]} Bxe6 {[%emt 0:02:33]} 12. O-O {[%emt 0:00:00]} O-O {[%emt 0:01:45]} 13. Bc4 {[%emt 0:01:00]} Bg4 {[%emt 0:03:39]} 14. Ne5 {[%emt 0:00:00]} Bf5 {[%emt 0:41:28]} 15. h3 {[%emt 0:00:00]} Nb6 {[%emt 0:00:00]} 16. Be3 {[%emt 0:00:00]} a6 {[%emt 0:00:00]} 17. g4 {[%emt 0:00:00]} Be6 {[%emt 0:00:00]} 18. Rfd1 {[%emt 0:00:00]} Nfd5 {[%emt 0:00:00]} 19. Nxd5 {[%emt 0:00:00]} Bxd5 {[%emt 0:00:00]} 20. Bxd5 {[%emt 0:01:00]} Nxd5 {[%emt 0:00:00]} 21. Nd3 {[%emt 0:00:23]} Rfd8 {[%emt 0:00:00]} 22. Nxb4 {[%emt 0:01:08]} Nxb4 {[%emt 0:00:00]} 23. Rac1 {[%emt 0:00:27]} Nd5 {[%emt 0:00:00]} 24. Rc5 {[%emt 0:00:26]} f6 {[%emt 0:00:00]} 25. Rdc1 {[%emt 0:01:02]} Rd7 {[%emt 0:00:00]} 26. Re1 {[%emt 0:00:15]} Rad8 {[%emt 0:00:00]} 27. Rec1 {[%emt 0:00:58]} Kf7 {[%emt 0:00:00]} 28. Kg2 {[%emt 0:00:10]} Re8 {[%emt 0:00:00]} 29. Kf3 {[%emt 0:00:08]} g5 {[%emt 0:00:49]} 30. Rc8 {[%emt 0:00:34]} Rde7 {[%emt 0:02:21]} 31. Rxe8 {[%emt 0:00:11]} Rxe8 {[%emt 0:00:17]} 32. Rc5 {[%emt 0:00:41]} Ke6 {[%emt 0:00:28]} 33. Rc1 {[%emt 0:01:04]} Kf7 {[%emt 0:01:16]} 34. Bd2 {[%emt 0:00:26]} Rd8 {[%emt 0:02:29]} 35. Ke4 {[%emt 0:00:30]} Ke6 {[%emt 0:01:22]} 36. Rc5 {[%emt 0:00:34]} h6 {[%emt 0:01:14]} 37. b4 {[%emt 0:00:13]} Rd7 {[%emt 0:00:38]} 38. Rc8 {[%emt 0:00:32]} Kf7 {[%emt 0:00:02]} 39. Rc5 {[%emt 0:00:31]} Ke6 {[%emt 0:00:07]} 40. b5 {[%emt 0:00:00]} axb5 {[%emt 0:00:00]} 41. Rxb5 {[%emt 0:00:40]} Ne7 {[%emt 0:12:06]} 42. f4 {[%emt 0:32:37]} Kf7 {[%emt 0:01:16]} 43. f5 {[%emt 0:00:00]} Nc8 {[%emt 0:03:01]} 44. Bb4 {[%emt 0:00:00]} Ke8 {[%emt 0:04:46]} 45. d5 {[%emt 0:00:00]} Kf7 {[%emt 0:13:18]} 46. Ba3 {[%emt 0:00:00]} Ke8 {[%emt 0:00:00]} 47. Rb3 {[%emt 0:00:00]} Kf7 {[%emt 0:00:00]} 48. Bc5 {[%emt 0:00:00]} b6 {[%emt 0:00:00]} 49. Ba3 {[%emt 0:00:00]} Kg7 {[%emt 0:00:27]} 50. Kd4 {[%emt 0:00:00]} Kf7 {[%emt 0:00:22]} 51. Re3 {[%emt 0:00:00]} Na7 {[%emt 0:00:40]} 52. Re6 {[%emt 0:00:00]} Nb5+ {[%emt 0:01:16]} 53. Ke4 {[%emt 0:00:00]} Nc7 {[%emt 0:00:20]} 54. Rxb6 {[%emt 0:00:00]} Nxd5 {[%emt 0:00:21]} 55. Rd6 {[%emt 0:06:30]} 1-0

[Event "40th BAN National Women Chess-ch 2021"]
[Site "Dhaka"]
[Date "2022.01.06"]
[Round "9.4"]
[White "Khan, Nazrana"]
[Black "Nusrat, Jahan Liza"]
[Result "1-0"]
[ECO "D45"]
[WhiteElo "1848"]
[BlackElo "1478"]
[Annotator "NA"]
[PlyCount "62"]
[EventDate "2021.12.29"]
[EventCountry "BAN"]
[SourceTitle "playchess.com"]
[Source "ChessBase"]
[SourceQuality "1"]
[TimeControl "40/5400+30:1800+30"]

1. d4 {[%emt 0:00:02]} d5 {[%emt 1:31:00]} 2. c4 {[%emt 1:31:28]} c6 {[%emt 0:00:00]} 3. Nf3 {[%emt 0:00:00]} Nf6 {[%emt 0:00:00]} 4. Nc3 {[%emt 0:00:00]} e6 {[%emt 0:00:00]} 5. e3 {[%emt 0:00:00]} Be7 {[%emt 0:00:00]} 6. Bd3 {[%emt 0:00:00]} dxc4 {[%emt 0:00:00]} 7. Bxc4 {[%emt 0:00:00]} b5 {[%emt 0:00:00]} 8. Bd3 {[%emt 0:00:00]} Bb7 {[%emt 0:00:00]} 9. O-O {[%emt 0:00:00]} O-O {[%emt 0:00:00]} 10. e4 {[%emt 0:00:00]} Nbd7 {[%emt 0:00:00]} 11. e5 {[%emt 0:00:00]} Nd5 {[%emt 0:00:00]} 12. Nxd5 {[%emt 0:00:00]} exd5 {[%emt 0:00:00]} 13. Re1 {[%emt 0:00:00]} Re8 {[%emt 0:00:00]} 14. g3 {[%emt 0:00:00]} Nf8 {[%emt 0:00:00]} 15. h4 {[%emt 0:00:00]} Qd7 {[%emt 0:00:00]} 16. e6 {[%emt 0:00:00]} fxe6 {[%emt 0:00:00]} (16... Nxe6 $2 17. Ne5 Qd6 {[#]} 18. Bxh7+ $1 {[%mdl 512]} (18. Qh5 g6 $17) 18... Kxh7 19. Qh5+ Kg8 20. Qxf7+ Kh7 21. Nc4 $1 {[%mdl 512]} bxc4 22. Rxe6 Qxe6 23. Qxe6 $18) 17. Ne5 {[%emt 0:00:00]} Qc7 {[%emt 0:00:00]} 18. Bf4 {[%emt 0:00:00]} Bd6 {[%emt 0:00:00]} 19. Rc1 {[%emt 0:00:00]} a6 {[%emt 0:00:00]} 20. h5 {[%emt 0:00:00]} Nd7 {[%emt 0:00:00]} 21. Qc2 {[%emt 0:00:00]} Nxe5 {[%emt 0:00:00]} 22. Bxh7+ {[%emt 0:00:00]} Kh8 {[%emt 0:00:00]} 23. Bxe5 {[%emt 0:00:00]} Bxe5 {[%emt 0:00:00]} 24. Rxe5 {[%emt 0:00:00]} Re7 {[%emt 0:00:00]} 25. Bg6 {[%emt 0:00:00]} Rf8 {[%emt 0:00:00]} 26. Rce1 {[%emt 0:00:00]} Rf6 {[%emt 0:00:00]} 27. f4 {[%emt 0:00:00]} Bc8 {[%emt 0:00:00]} 28. f5 {[%emt 0:00:00]} Bd7 $18 {[%emt 0:00:00]} 29. g4 {[%emt 0:00:00]} exf5 {[%emt 0:00:00]} 30. Rxe7 {[%emt 0:00:00]} Qg3+ {[%emt 0:00:00]} 31. Qg2 {[%emt 0:00:00]} Qf4 {[%emt 0:00:00]} 1-0

[Event "40th BAN National Women Chess-ch 2021"]
[Site "Dhaka"]
[Date "2022.01.06"]
[Round "9.5"]
[White "Omnia Binta Yusuf, Lubaba"]
[Black "Nusrat Jahan, Alo"]
[Result "0-1"]
[ECO "C17"]
[WhiteElo "1439"]
[BlackElo "1766"]
[Annotator "NA"]
[PlyCount "76"]
[EventDate "2021.12.29"]
[EventCountry "BAN"]
[SourceTitle "playchess.com"]
[Source "ChessBase"]
[SourceQuality "1"]
[TimeControl "40/5400+30:1800+30"]

1. e4 {[%emt 0:00:13]} e6 {[%emt 0:00:29]} 2. d4 {[%emt 0:00:48]} d5 {[%emt 0:00:13]} 3. Nc3 {[%emt 1:30:59]} Bb4 {[%emt 0:00:47]} 4. e5 {[%emt 0:01:50]} c5 {[%emt 0:02:15]} 5. Bd2 {[%emt 0:06:16]} cxd4 {[%emt 0:11:04]} 6. Nb5 {[%emt 0:01:27]} Bc5 {[%emt 0:05:39]} 7. Qg4 {[%emt 0:01:49]} g6 {[%emt 0:05:45]} 8. b4 {[%emt 0:03:46]} Be7 {[%emt 0:04:34]} 9. Nxd4 {[%emt 0:02:07]} Qb6 {[%emt 0:04:37]} 10. Bb5+ {[%emt 0:10:56]} Bd7 {[%emt 0:03:12]} 11. Bxd7+ {[%emt 0:00:49]} Nxd7 {[%emt 0:02:21]} 12. Ndf3 {[%emt 0:01:01]} Qc7 {[%emt 0:02:02]} 13. Ne2 {[%emt 0:05:07]} Bf8 {[%emt 0:08:50]} 14. Bc3 {[%emt 0:08:01]} Bg7 {[%emt 0:02:03]} 15. Qg3 {[%emt 0:02:10]} Ne7 {[%emt 0:04:06]} 16. h4 {[%emt 0:03:55]} Nc6 {[%emt 0:08:20]} 17. h5 {[%emt 0:01:26]} Ncxe5 {[%emt 0:01:50]} 18. Nfd4 {[%emt 0:04:22]} Rc8 {[%emt 0:06:34]} 19. f4 {[%emt 0:02:10]} Nc4 {[%emt 0:03:35]} 20. hxg6 {[%emt 0:01:08]} hxg6 {[%emt 0:01:29]} 21. Rxh8+ {[%emt 0:05:22]} Bxh8 {[%emt 0:00:03]} 22. Qh4 {[%emt 0:01:08]} Bf6 {[%emt 0:00:50]} 23. Qh6 {[%emt 0:01:49]} Ne3 {[%emt 0:02:47]} 24. Kd2 {[%emt 0:03:55]} Nf5 {[%emt 0:02:30]} 25. Qh3 {[%emt 0:06:27]} Nxd4 {[%emt 0:01:51]} 26. Nxd4 {[%emt 0:03:13]} Bxd4 {[%emt 0:00:46]} 27. Bxd4 {[%emt 0:00:11]} Qxc2+ {[%emt 0:00:19]} 28. Ke1 {[%emt 0:00:39]} Qe4+ {[%emt 0:00:42]} 29. Be3 {[%emt 0:01:45]} Qxb4+ {[%emt 0:00:51]} 30. Kf1 {[%emt 0:01:14]} Qc3 {[%emt 0:04:40]} 31. Rc1 {[%emt 0:01:22]} Qd3+ {[%emt 0:00:12]} 32. Ke1 {[%emt 0:05:50]} Rxc1+ {[%emt 0:00:23]} 33. Bxc1 {[%emt 0:00:06]} Qxh3 {[%emt 0:00:24]} 34. gxh3 {[%emt 0:00:08]} Nc5 {[%emt 0:00:27]} 35. Ke2 {[%emt 0:00:52]} Ne4 {[%emt 0:00:20]} 36. Bb2 {[%emt 0:00:40]} Kd7 {[%emt 0:00:15]} 37. Bd4 {[%emt 0:00:29]} a5 {[%emt 0:00:36]} 38. a4 {[%emt 0:00:50]} Kc6 {[%emt 0:00:14]} 0-1